Cogmind - Beta 15 @@@ ROGUE MODE // 2025.07.27 @ 15:23:43 Player: cingulata Result: Destroyed by G-67 Veteran with Plasma Rifle Performance ------------- Evolutions (5) 2500 Regions Visited (14) 2800 Robots Destroyed (183) 915 Value Destroyed (5147) 5147 Prototype IDs (36) 720 Alien Tech Used (0) 0 Bonus (632) 632 TOTAL SCORE: 12714 Bonus ------- Follower Combat Kills 398 Aligned with FarCom 300 Met Data Miner 300 Friendly Fire -366 Cogmind --------- Core Integrity 0/1000 Matter 203/300 Energy 99/100 System Corruption 4% Temperature Danger (435) Movement Core (50) Location -5/Extension Parts ------- > --- POWER (3) -------- (None) > --- PROPULSION (4) --- (None) > --- UTILITY (6) ------ (None) > --- WEAPON (4) ------- (None) > --- INVENTORY (5) ---- Neutrino Core Structural Scanner Improved Sensor Array Improved Medium Armor Plating Powered Armor Peak State ------------ > --- POWER ------------ Reinforced Deuterium Engine Angular Momentum Engine Neutrino Core > --- PROPULSION ------- Improved Medium Treads Improved Medium Treads Improved Medium Treads Improved Medium Treads > --- UTILITY ---------- Advanced Cooling System High-capacity Storage Unit Advanced Recoil Stabilizer Powered Armor Force Field Long-range Tractor Beam > --- WEAPON ----------- Advanced Plasma Cannon XL Autogun Subcomponent KE Penetrator Bore Cannon > --- INVENTORY -------- Light Angular Momentum Engine Micro Fission Core Matter Compressor Structural Scanner Enhanced Optical Array Improved Sensor Array Advanced Terrain Scanner Matter Filter Improved Utility Shielding Improved Medium Armor Plating Layered Medium Armor Plating Insulated Plating Powered Armor Powered Armor Powered Armor Improved Hardlight Generator Improved Hardlight Generator Missile Launcher Heavy Missile Launcher [Rating: 93] Favorites ----------- Power Reinforced Deuterium Engine Engine Reinforced Deuterium Engine Power Core Neutrino Core Propulsion Improved Medium Treads Treads Improved Medium Treads Leg Aluminum Leg Utility High-capacity Storage Unit Device Improved Terrain Scanner Storage High-capacity Storage Unit Processor Improved Terrain Scan Processor Hackware Hacking Suite Protection Improved Medium Armor Plating Weapon XL Autogun Subcomponent Energy Gun Medium Laser Energy Cannon Advanced Plasma Cannon Ballistic Gun XL Autogun Subcomponent Ballistic Cannon Bore Cannon Launcher Heavy Missile Launcher Slashing Weapon Power Sword Build | -11 -10 -10 -10 -9 -8 -7 -7 -7 -6 -6 -6 -5 -5 -5 ------- Run | Yrd Mat Min Exi Min Mat Fac Low Low Fac Low Dat Pro Fac Ext Slots Evolved 10 | . . . . . 4 2 . . 2 . . . 2 . Power 2 | . . . . . . . . . 1 . . . 1 . Propulsion 2 | . . . . . 1 1 . . . . . . . . Utility 4 | . . . . . 1 1 . . 1 . . . 1 . Weapon 2 | . . . . . 2 . . . . . . . . . Parts Attached 85 | 2 8 . . 2 10 10 3 . 21 . . 8 14 7 Power 10 | . 1 . . . 1 . . . 3 . . 1 3 1 Engine 6 | . 1 . . . 1 . . . 1 . . 1 2 . Core 4 | . . . . . . . . . 2 . . . 1 1 Reactor . | . . . . . . . . . . . . . . . Propulsion 24 | . 3 . . . 4 6 1 . 6 . . . 2 2 Treads 24 | . 3 . . . 4 6 1 . 6 . . . 2 2 Leg . | . . . . . . . . . . . . . . . Wheel . | . . . . . . . . . . . . . . . Hover . | . . . . . . . . . . . . . . . Flight . | . . . . . . . . . . . . . . . Utility 33 | 1 2 . . . 4 4 2 . 7 . . 3 7 3 Device 15 | 1 . . . . . 2 2 . 3 . . 2 4 1 Storage 1 | . 1 . . . . . . . . . . . . . Processor 4 | . . . . . . 1 . . 2 . . . 1 . Hackware 2 | . . . . . 1 . . . 1 . . . . . Protection 11 | . 1 . . . 3 1 . . 1 . . 1 2 2 Artifact . | . . . . . . . . . . . . . . . Weapon 18 | 1 2 . . 2 1 . . . 5 . . 4 2 1 Energy Gun 1 | 1 . . . . . . . . . . . . . . Energy Cannon 2 | . . . . . . . . . . . . 1 . 1 Ballistic Gun 8 | . 1 . . . 1 . . . 4 . . 1 1 . Ballistic Cannon 3 | . . . . 1 . . . . . . . 2 . . Launcher 2 | . . . . 1 . . . . . . . . 1 . Special Weapon . | . . . . . . . . . . . . . . . Impact Weapon . | . . . . . . . . . . . . . . . Slashing Weapon 2 | . 1 . . . . . . . 1 . . . . . Piercing Weapon . | . . . . . . . . . . . . . . . Special Melee Weapon . | . . . . . . . . . . . . . . . Unidentified Prototypes 1 | . . . . . . . . . 1 . . . . . Parts Lost 21 | . 1 . . . . . . . . . . 1 3 16 Power 3 | . 1 . . . . . . . . . . 1 . 1 Propulsion 5 | . . . . . . . . . . . . . 1 4 Utility 6 | . . . . . . . . . . . . . . 6 Weapon 7 | . . . . . . . . . . . . . 2 5 Highest Loss Streak 15 | . 1 . . . . . . . . . . 1 2 15 To Critical Strikes 1 | . . . . . . . . . . . . . 1 . Average Backups 18 | 5 8 17 18 17 19 19 19 20 19 19 19 18 18 19 Power 1 | 1 1 2 2 2 2 2 2 2 1 2 2 1 . 1 Propulsion 2 | 3 3 3 3 3 3 2 2 2 3 2 2 2 1 . Utility 9 | . 1 6 8 7 8 9 9 10 9 9 9 8 12 14 Weapon 5 | 1 2 5 5 5 5 5 6 6 6 6 6 6 3 1 Tool/Special . | . . . . . . . . . . . . . . . Unused Backups 49 | . 9 1 4 1 9 7 . . 8 . . 2 1 7 Power 9 | . 1 . . 1 3 2 . . . . . . . 2 Propulsion 10 | . 4 . . . 3 . . . 2 . . . . 1 Utility 20 | . 1 . 2 . 3 3 . . 5 . . 1 1 4 Weapon 10 | . 3 1 2 . . 2 . . 1 . . 1 . . Tool/Special . | . . . . . . . . . . . . . . . Average Slot Usage (%) 87 | . 99 100 100 100 70 75 76 76 88 100 78 99 99 98 Engine 9 | . 13 14 14 14 9 7 7 7 6 6 6 7 13 10 Core 1 | . . . . . . . . . 5 6 6 4 2 4 Treads 26 | . 25 28 28 28 26 30 30 30 25 26 26 26 23 22 Device 10 | . 8 12 14 14 . 11 11 7 7 13 13 12 20 17 Storage 8 | . 14 14 14 14 9 7 7 7 6 6 6 6 5 4 Processor 1 | . . . . . . . 1 . 6 6 6 4 . . Protection 8 | . 5 1 . . 14 10 9 15 10 6 6 8 7 9 Energy Gun 2 | . 11 14 14 10 . . . . . . . . . . Ballistic Gun 11 | . 14 14 14 14 9 7 7 7 14 26 5 22 10 10 Ballistic Cannon 1 | . . . . 3 . . . . . . . 2 5 4 Peak Build Rating 93 | 7 8 10 13 15 55 72 72 71 88 77 77 77 92 93 Average Rating 60 | 6 7 9 11 13 51 68 71 71 81 77 56 75 88 85 On Entrance 47 | 6 7 8 10 13 13 55 72 71 71 77 77 77 74 87 Naked Turns 11 | . . . . . . . . . . . . . . 11 Heaviest Build 145 | 15 50 50 50 54 74 79 83 80 91 89 89 117 139 145 Greatest Support 120 | 20 40 40 40 40 60 106 106 104 120 120 120 120 120 120 Greatest Overweight (x) 1 | . 1 1 1 1 1 . . . 1 . . . 1 1 Average Overweight (x) . | . . 1 1 1 1 . . . . . . . . . Largest Inventory Capacity 20 | 8 20 20 20 20 20 20 20 20 20 20 20 20 20 20 Average Capacity 19 | 8 11 20 20 20 20 20 20 20 20 20 20 20 20 19 Most Carried 20 | 6 12 20 20 20 20 20 20 20 20 19 19 20 20 20 Average Carried 18 | 5 8 17 19 20 19 19 19 20 19 19 19 18 18 19 Final Capacity 20 | 8 20 20 20 20 20 20 20 20 20 20 20 20 20 5 Final Carried 20 | 6 12 20 20 20 20 20 20 20 20 19 19 14 18 5 Class Distribution -------------------- 35% | Tank 34% | Skirmisher 22% | Mutant 4% | Scavenger-Tank Dominant Class ---------------- Mutant | -10/Materials Mutant | -10/Mines Mutant | -10/Exiles Mutant | -9/Mines Skirmisher | -8/Materials Skirmisher | -7/Factory Tank | -7/Lower Caves Tank | -7/Lower Caves Skirmisher | -6/Factory Tank | -6/Lower Caves Mutant | -6/Data Miner Skirmisher | -5/Proximity Caves Tank | -5/Factory Scavenger-Tank | -5/Extension Resources | -11 -10 -10 -10 -9 -8 -7 -7 -7 -6 -6 -6 -5 -5 -5 ----------- Run | Yrd Mat Min Exi Min Mat Fac Low Low Fac Low Dat Pro Fac Ext Matter Collected 8158 | 253 249 82 . 82 1062 1257 658 180 1943 . . 692 524 1176 Remotely 608 | . . . . . . . . . . . . . 82 526 Salvage Created 8218 | 121 482 287 . 19 1303 1327 609 370 1744 . . 406 688 862 Parts 386 | 5 32 15 . 5 83 61 19 21 62 . . 13 35 35 Haulers Intercepted 7 | . 1 . . . 4 1 . . 1 . . . . . Recyclers Shooed 16 | . 2 . . . 2 4 . . 3 . . . 3 2 Parts Field Recycled . | . . . . . . . . . . . . . . . Retrieved Matter . | . . . . . . . . . . . . . . . Parts Self-Destructed 59 | . . . . . . . 26 21 . . . 12 . . Prevented . | . . . . . . . . . . . . . . . Kills | -11 -10 -10 -10 -9 -8 -7 -7 -7 -6 -6 -6 -5 -5 -5 ------- Run | Yrd Mat Min Exi Min Mat Fac Low Low Fac Low Dat Pro Fac Ext Combat Hostiles Destroyed 100 | . 11 5 . 3 18 7 9 6 16 . . 10 8 7 Guns 90 | . 11 5 . . 18 7 9 6 16 . . 9 7 2 Cannons 6 | . . . . 1 . . . . . . . 1 1 3 AOE 3 | . . . . 2 . . . . . . . . . 1 Classes Destroyed 17 | 2 5 . . 1 4 1 1 . 1 . . 1 . 1 Worker 10 | . . . . 1 2 . . . 3 . . . 2 2 Builder 10 | . . . . . 1 2 . . 1 . . . 3 3 Tunneler 8 | 2 1 1 . . . . . . . . . . . 4 Hauler 7 | . 1 . . . 4 1 . . 1 . . . . . Recycler 26 | 1 1 1 . . 4 9 . . 5 . . . 1 4 Operator 5 | . 1 . . . 3 1 . . . . . . . . Drone 2 | . . . . . . . . . . . . 2 . . Watcher 16 | . 2 . . . 4 5 . . 2 . . . 2 1 Swarmer 26 | . 6 3 . 3 8 . 1 . . . . 4 1 . Grunt 35 | . 5 2 . . 6 . 4 6 5 . . 3 1 3 Brawler 3 | . . . . . . . . . 1 . . 1 . 1 Duelist 5 | . . . . . 1 . 2 1 . . . . 1 . Sentry 11 | . . . . . 2 2 2 . 2 . . . 1 2 Hunter 3 | . . . . . 1 . . . 2 . . . . . Programmer 15 | . . . . . . 5 . . 6 . . . 4 . Behemoth 1 | . . . . . . . . . . . . . . 1 Decomposer 2 | . . . . . . . 1 . . . . 1 . . Samaritan 1 | . . . . . . . 1 . . . . . . . Best Kill Streak 7 | 1 3 3 . 3 5 3 5 4 6 . . 5 4 7 Combat Bots Only 5 | . 3 3 . 3 4 1 5 4 3 . . 5 3 2 Max Kills in Single Turn 4 | 1 1 1 . 1 2 1 1 1 3 . . 2 3 4 Gunslinging 1 | . . . . . . . . . . . . 1 . . Exploded 1 | . . . . 1 . . . . . . . . . 1 Melee . | . . . . . . . . . . . . . . . Uniques/NPCs Destroyed . | . . . . . . . . . . . . . . . Combat | -11 -10 -10 -10 -9 -8 -7 -7 -7 -6 -6 -6 -5 -5 -5 -------- Run | Yrd Mat Min Exi Min Mat Fac Low Low Fac Low Dat Pro Fac Ext Hostile Shots Fired 570 | . 50 24 . 8 36 27 35 8 122 . . 39 34 187 Missed 168 | . 15 8 . 2 15 8 12 3 38 . . 6 14 47 Hits 402 | . 35 16 . 6 21 19 23 5 84 . . 33 20 140 Melee 5 | . . . . . . . . . . . . 4 1 . Projectile 397 | . 35 16 . 6 21 19 23 5 84 . . 29 19 140 Critical Strikes 30 | . . 2 . . . . . . 6 . . 5 2 15 Damage Taken 7061 | . 346 172 . 55 362 270 311 81 840 . . 996 531 3097 Core 1706 | . 45 56 . 9 66 78 13 . 88 . . 337 68 946 Absorbed by Shields 916 | . . . . . . . 33 . 285 . . . 308 290 Redirected to Shielding 143 | . . 4 . . 61 34 . . 4 . . . 40 . Ignored by Resistances 62 | . . . . . . . . . 12 . . . 9 41 Regen/Repaired (Parts) 557 | . . . . . 31 . . . 245 . . . 281 . Core Remaining (%) 76 | 100 . . . 56 88 . . 87 . . . 50 . . Volleys Fired 508 | 11 58 14 . 11 63 82 35 12 91 . . 35 63 33 Largest 4 | 2 2 2 . 2 1 1 1 1 4 . . 4 4 4 Hottest 210 | 70 70 70 . 70 60 60 60 60 80 . . 108 140 210 Shots Fired 936 | 22 115 28 . 20 63 82 36 12 231 . . 116 118 93 Gun 802 | 22 115 28 . 14 63 82 36 12 228 . . 114 55 33 Cannon 105 | . . . . 4 . . . . . . . 2 62 37 Launcher 29 | . . . . 2 . . . . 3 . . . 1 23 Special . | . . . . . . . . . . . . . . . Kinetic 760 | 11 58 14 . 13 63 82 36 12 228 . . 116 79 48 Thermal 147 | 11 57 14 . 5 . . . . . . . . 38 22 Explosive 29 | . . . . 2 . . . . 3 . . . 1 23 Electromagnetic . | . . . . . . . . . . . . . . . Robot Hit Streak 19 | 12 9 7 . 4 12 10 11 5 12 . . 19 6 11 Robot Miss Streak 8 | 2 7 1 . 2 4 6 4 3 7 . . 8 3 5 Penetration Max 2 | . . . . . . . . . . . . . 2 1 Secondary Targets 4 | . 1 . . . . . . . 1 . . 2 . . Max Gunslinging Chain 1 | . 1 . . . . . . . 1 . . 1 . . Shots Hit Robots 506 | 17 57 20 . 10 53 45 35 12 114 . . 58 44 41 Core Hits 314 | 4 25 11 . 5 44 31 24 17 56 . . 20 27 50 Critical Kills 6 | . . . . . . . . . . . . . 5 1 Critical Parts Destroyed 9 | . . . . . . . . . . . . . 6 3 Critical Strikes 23 | 1 5 1 . . . . . . . . . . 11 5 Burn 7 | 1 5 1 . . . . . . . . . . . . Meltdown 2 | . . . . . . . . . . . . . 1 1 Destroy 14 | . . . . . . . . . . . . . 10 4 Melee Attacks 13 | . 7 . . . . . . . 3 . . . 3 . Impact . | . . . . . . . . . . . . . . . Slashing 13 | . 7 . . . . . . . 3 . . . 3 . Piercing . | . . . . . . . . . . . . . . . Sneak Attacks 1 | . 1 . . . . . . . . . . . . . Combat Hostiles . | . . . . . . . . . . . . . . . Follow-up Attacks . | . . . . . . . . . . . . . . . Damage Inflicted 18611 | 210 763 252 . 245 2770 2147 2184 599 3623 . . 1199 1437 3182 Guns 14812 | 210 712 252 . 86 2770 2147 2184 599 3480 . . 1168 810 394 Cannons 1305 | . . . . 53 . . . . . . . 31 580 641 Explosions 2422 | . . . . 106 . . . . 143 . . . 47 2126 Melee 51 | . 51 . . . . . . . . . . . . . Ramming 21 | . . . . . . . . . . . . . . 21 Kinetic 14702 | 98 308 99 . 113 2770 2147 2184 599 3480 . . 1199 1219 486 Thermal 1415 | 112 404 153 . 26 . . . . . . . . 171 549 Explosive 2422 | . . . . 106 . . . . 143 . . . 47 2126 Electromagnetic . | . . . . . . . . . . . . . . . Impact . | . . . . . . . . . . . . . . . Slashing 51 | . 51 . . . . . . . . . . . . . Piercing . | . . . . . . . . . . . . . . . Highest Corruption 4 | . . . . . . 1 1 1 4 4 4 4 3 4 Average Corruption 2 | . . . . . . 1 1 1 3 4 4 4 3 3 Corruption Purged . | . . . . . . . . . . . . . . . Corruption Blocked . | . . . . . . . . . . . . . . . Effects 158 | . . . . . . 9 10 11 60 2 6 18 19 23 Message Errors 39 | . . . . . . . 5 6 12 . 1 5 5 5 Matter Fused 38 | . . . . . . 1 . . 22 1 4 3 3 4 Heat Flow Errors 23 | . . . . . . 3 3 1 5 . . 3 4 4 Energy Discharges 13 | . . . . . . 2 . 1 6 1 . . 3 . Parts Rejected 1 | . . . . . . . . . 1 . . . . . Parts Fused 4 | . . . . . . . . 1 . . . . 1 2 Data Loss (minor) 14 | . . . . . . 2 1 . 5 . . 3 1 2 Data Loss (major) 11 | . . . . . . 1 . 2 3 . 1 1 . 3 Misfires 9 | . . . . . . . 1 . 5 . . 1 . 2 Alerts 2 | . . . . . . . . . 1 . . . . 1 Weapon Failures 4 | . . . . . . . . . . . . 2 2 . Overload Shots . | . . . . . . . . . . . . . . . Overflow Damage 63 | . 11 . . . . . . . . . . . 24 28 Projectiles 28 | . . . . . . . . . . . . . 24 4 Explosions 24 | . . . . . . . . . . . . . . 24 Melee 11 | . 11 . . . . . . . . . . . . . Knockbacks 4 | . . . . 1 . . . . . . . . 3 . Impact . | . . . . . . . . . . . . . . . Kinetic 4 | . . . . 1 . . . . . . . . 3 . Secondary . | . . . . . . . . . . . . . . . Self-Inflicted Damage 41 | . . . . . . . . . 41 . . . . . Shots 2 | . . . . . . . . . 2 . . . . . Rammed 3 | . . . . . . . . . . . . . . 3 Targets Rammed 3 | . . . . . . . . . . . . . . 3 Kicked . | . . . . . . . . . . . . . . . Crushed . | . . . . . . . . . . . . . . . Highest Temperature 769 | 81 90 56 . 9 195 245 433 246 469 . . 769 439 638 Average Temperature 129 | 36 21 17 . 6 58 70 122 63 138 . . 250 117 232 Received Heat Transfer 1700 | . 114 90 . . 36 36 84 45 134 . . 261 48 852 Effects 122 | . . . . . . . 2 . 14 . . 45 12 49 Shutdowns 34 | . . . . . . . 1 . 5 . . 10 4 14 Energy Bleed 9 | . . . . . . . . . 3 . . 4 1 1 Interference 17 | . . . . . . . 1 . . . . 5 3 8 Matter Decay 11 | . . . . . . . . . 3 . . 4 1 3 Short Circuit 10 | . . . . . . . . . 1 . . 5 2 2 Damage (minor) 9 | . . . . . . . . . 2 . . 2 1 4 Damage (major) 28 | . . . . . . . . . . . . 13 . 15 Damage (core) 4 | . . . . . . . . . . . . 2 . 2 Siege Activations . | . . . . . . . . . . . . . . . Martial Activations . | . . . . . . . . . . . . . . . Shielding Activations . | . . . . . . . . . . . . . . . Robots Disrupted . | . . . . . . . . . . . . . . . Combat Hostiles . | . . . . . . . . . . . . . . . Robots Corrupted . | . . . . . . . . . . . . . . . Combat Hostiles . | . . . . . . . . . . . . . . . Parts Fried . | . . . . . . . . . . . . . . . Impact Corruptions . | . . . . . . . . . . . . . . . Robots Melted 2 | . . . . . . . . . . . . . 1 1 Combat Hostiles 1 | . . . . . . . . . . . . . . 1 Parts Melted 5 | . 3 . . . . . . . . . . . . 2 Heat Transferred 3603 | 407 1554 518 . 74 . . . . . . . . 250 800 Parts Sabotaged . | . . . . . . . . . . . . . . . Parts Stolen . | . . . . . . . . . . . . . . . Parts Stripped . | . . . . . . . . . . . . . . . Power Chain Reactions . | . . . . . . . . . . . . . . . Alert | -11 -10 -10 -10 -9 -8 -7 -7 -7 -6 -6 -6 -5 -5 -5 ------- Run | Yrd Mat Min Exi Min Mat Fac Low Low Fac Low Dat Pro Fac Ext Maximum Alert Level 1 | . . . . . 1 . . . 1 . . . 1 . Low Security (%) 93 | 100 100 100 . 100 87 100 . . 89 . . . 76 100 Level 1 6 | . . . . . 12 . . . 10 . . . 23 . Level 2 . | . . . . . . . . . . . . . . . Level 3 . | . . . . . . . . . . . . . . . Level 4 . | . . . . . . . . . . . . . . . Level 5 . | . . . . . . . . . . . . . . . High Security . | . . . . . . . . . . . . . . . Max Security . | . . . . . . . . . . . . . . . Peak Influence 323 | 5 103 53 . 62 231 93 . . 246 . . . 323 109 Initial 323 | . . . . . . 93 . . . . . . 323 109 Average 54 | 2 25 8 . 6 81 25 . . 86 . . . 101 29 Influence Increases 4206 | 15 341 239 . 75 665 397 272 145 612 . . 220 657 568 Destroy 0b10 Robot/C 2180 | . 220 180 . 60 360 140 200 120 320 . . 160 160 260 Destroy 0b10 Robot/NC 430 | 15 30 15 . 5 95 90 . . 60 . . 10 40 70 Destroy Leader 478 | . 56 30 . 10 88 82 10 10 106 . . 20 34 32 Allied During Kill 55 | . . 14 . . 1 . 2 . . . . . . 38 Successful Hack 63 | . . . . . 16 5 . . 26 . . . 16 . Disable Machine 240 | . . . . . 45 60 . . 60 . . . 45 30 Destroy Structure 310 | . 5 . . . 45 20 . . 40 . . . 62 138 Advance Influence 300 | . . . . . . . . . . . . . 300 . Lose Combat Pursuer 150 | . 30 . . . 15 . 60 15 . . . 30 . . Influence Decreases 4206 | 15 341 239 . 75 458 536 218 267 371 150 91 182 472 791 Entered New Map 474 | . . . . . . 114 26 24 . 90 91 . 15 114 Time Decay 3331 | 15 331 181 . 75 458 422 172 243 361 60 . 172 427 414 Lost Part 176 | . 10 . . . . . . . . . . 10 30 126 Lost Ally 225 | . . 58 . . . . 20 . 10 . . . . 137 Squads Dispatched 31 | . 3 1 . . 3 6 . . 9 . . . 5 4 Investigation 3 | . . . . . 2 . . . . . . . . 1 Extermination 14 | . . . . . . 5 . . 6 . . . 3 . Reinforcement 9 | . 3 . . . 1 1 . . . . . . 1 3 Assault 1 | . . 1 . . . . . . . . . . . . Garrison 4 | . . . . . . . . . 3 . . . 1 . Intercept . | . . . . . . . . . . . . . . . Searches Triggered . | . . . . . . . . . . . . . . . Construction Impeded 2 | . . . . . . . . . . . . . 1 1 Haulers Reinforced . | . . . . . . . . . . . . . . . Active Scanning Responses . | . . . . . . . . . . . . . . . Cargo Convoy Interrupts . | . . . . . . . . . . . . . . . Stealth | -11 -10 -10 -10 -9 -8 -7 -7 -7 -6 -6 -6 -5 -5 -5 --------- Run | Yrd Mat Min Exi Min Mat Fac Low Low Fac Low Dat Pro Fac Ext Distress Signals 6 | . 3 . . . 1 . . . . . . . . 2 Communications Jammed . | . . . . . . . . . . . . . . . Distress Signals . | . . . . . . . . . . . . . . . Times Spotted 162 | . 25 7 . 1 29 15 11 7 22 . . 12 10 23 Peak Tracking Total 9 | . 4 3 . 1 4 2 9 4 3 . . 4 3 8 Tactical Retreats 6 | . 2 . . . 1 . 1 1 . . . 1 . . Traps | -11 -10 -10 -10 -9 -8 -7 -7 -7 -6 -6 -6 -5 -5 -5 ------- Run | Yrd Mat Min Exi Min Mat Fac Low Low Fac Low Dat Pro Fac Ext Traps Triggered 7 | . . . . . . 1 . . 3 . . . 2 1 Indirectly . | . . . . . . . . . . . . . . . Trap Hack Attempts . | . . . . . . . . . . . . . . . Triggered . | . . . . . . . . . . . . . . . Disarmed . | . . . . . . . . . . . . . . . Reprogrammed . | . . . . . . . . . . . . . . . Reused . | . . . . . . . . . . . . . . . Traps Extracted . | . . . . . . . . . . . . . . . Installed . | . . . . . . . . . . . . . . . Triggered . | . . . . . . . . . . . . . . . Machines | -11 -10 -10 -10 -9 -8 -7 -7 -7 -6 -6 -6 -5 -5 -5 ---------- Run | Yrd Mat Min Exi Min Mat Fac Low Low Fac Low Dat Pro Fac Ext Machines Disabled 19 | . . . . . 3 4 1 . 4 . . . 3 4 Max in Single Turn 2 | . . . . . 1 1 1 . 1 . . . 1 2 Garrison Access 1 | . . . . . . 1 . . . . . . . . Machines Repaired . | . . . . . . . . . . . . . . . Machines Dismantled . | . . . . . . . . . . . . . . . Machines Sabotaged . | . . . . . . . . . . . . . . . Overloaded Fab Kills . | . . . . . . . . . . . . . . . Hacking | -11 -10 -10 -10 -9 -8 -7 -7 -7 -6 -6 -6 -5 -5 -5 --------- Run | Yrd Mat Min Exi Min Mat Fac Low Low Fac Low Dat Pro Fac Ext Machines Accessed 58 | . 3 1 2 . 9 17 . 1 16 . 4 . 4 1 Terminals 25 | . 3 . . . 6 7 . . 7 . . . 2 . Fabricators 4 | . . . . . . 2 . . 2 . . . . . Repair Stations 8 | . . . . . 2 2 . . 3 . . . 1 . Recycling Units 6 | . . . . . . 3 . . 2 . . . . 1 Scanalyzers 2 | . . . . . 1 1 . . . . . . . . Garrison Access 5 | . . . . . . 2 . . 2 . . . 1 . Total Hacks 150 | . 9 1 2 . 28 33 . 1 36 . 28 . 9 3 Successful 81 | . 2 1 2 . 13 14 . 1 15 . 28 . 5 . Failed 69 | . 7 . . . 15 19 . . 21 . . . 4 3 Catastrophic 14 | . 1 . . . 1 4 . . 6 . . . 2 . Database Lockouts . | . . . . . . . . . . . . . . . Manual 44 | . 8 . 1 . 13 5 . . 14 . . . 3 . Terminals 64 | . 9 . . . 21 12 . . 18 . . . 4 . Fabricators 7 | . . . . . . 4 . . 3 . . . . . Repair Stations 19 | . . . . . 5 2 . . 8 . . . 4 . Recycling Units 13 | . . . . . . 6 . . 4 . . . . 3 Scanalyzers 9 | . . . . . 2 7 . . . . . . . . Garrison Access 6 | . . . . . . 2 . . 3 . . . 1 . Terminal Hacks 43 | . 2 1 2 . 5 2 . 1 1 . 28 . 1 . Record 14 | . . . 1 . . 1 . . 1 . 11 . . . Part Schematic 8 | . . . . . . . . . . . 8 . . . Robot Schematic 6 | . . . . . . . . . . . 6 . . . Robot Analysis 2 | . 1 . . . 1 . . . . . . . . . Prototype ID Bank 4 | . . . . . 1 . . . . . 3 . . . Open Door 3 | . . 1 . . . . . 1 . . . . 1 . Open DSF 1 | . . . . . . 1 . . . . . . . . Locate Traps 2 | . 1 . . . 1 . . . . . . . . . Hauler Manifests 1 | . . . . . 1 . . . . . . . . . Zone Layout 1 | . . . . . 1 . . . . . . . . . Proto ID Catalog 1 | . . . 1 . . . . . . . . . . . Fabricator Hacks 3 | . . . . . . 1 . . 2 . . . . . Network Status 1 | . . . . . . . . . 1 . . . . . Load Schematic 2 | . . . . . . 1 . . 1 . . . . . Repair Station Hacks 12 | . . . . . 3 . . . 6 . . . 3 . Scan Component 7 | . . . . . 2 . . . 3 . . . 2 . Repair 5 | . . . . . 1 . . . 3 . . . 1 . Recycling Unit Hacks 5 | . . . . . . 3 . . 2 . . . . . Process 2 | . . . . . . 1 . . 1 . . . . . Retrieve Matter 2 | . . . . . . 1 . . 1 . . . . . Retrieve Components 1 | . . . . . . 1 . . . . . . . . Scanalyzer 8 | . . . . . 2 6 . . . . . . . . Insert Component 4 | . . . . . 1 3 . . . . . . . . Analyze 4 | . . . . . 1 3 . . . . . . . . Garrison Access Hacks 1 | . . . . . . 1 . . . . . . . . Seal Access 1 | . . . . . . 1 . . . . . . . . Unauthorized Hacks 9 | . . . . . 3 1 . . 4 . . . 1 . Terminals 9 | . . . . . 3 1 . . 4 . . . 1 . Assimilate 1 | . . . . . . . . . 1 . . . . . Botnet 8 | . . . . . 3 1 . . 3 . . . 1 . Fabricators . | . . . . . . . . . . . . . . . Repair Stations . | . . . . . . . . . . . . . . . Recycling Units . | . . . . . . . . . . . . . . . Scanalyzers . | . . . . . . . . . . . . . . . Garrison Access . | . . . . . . . . . . . . . . . Data Cores Recovered 2 | . . . . . 1 1 . . . . . . . . Used 1 | . . . . . . 1 . . . . . . . . Hacking Detections 41 | . 3 . . . 8 15 . . 11 . . . 3 1 Full Trace Events 2 | . . . . . 2 . . . . . . . . . Feedback Events . | . . . . . . . . . . . . . . . Feedback Blocked . | . . . . . . . . . . . . . . . Robot Schematics Acquired 6 | . . . . . . . . . . . 6 . . . Robots Built . | . . . . . . . . . . . . . . . Authchips . | . . . . . . . . . . . . . . . Time . | . . . . . . . . . . . . . . . Total Robot Build Rating . | . . . . . . . . . . . . . . . Part Schematics Acquired 10 | . . . . . 1 1 . . . . 8 . . . Parts Built . | . . . . . . . . . . . . . . . Authchips . | . . . . . . . . . . . . . . . Time . | . . . . . . . . . . . . . . . Total Part Build Rating . | . . . . . . . . . . . . . . . Parts Repaired 5 | . . . . . 1 . . . 3 . . . 1 . Time 182 | . . . . . 19 . . . 113 . . . 50 . Parts Recycled . | . . . . . . . . . . . . . . . Recycled Matter 292 | . . . . . . 18 . . 274 . . . . . Retrieved Matter 495 | . . . . . . . . . 495 . . . . . Retrieved Components 1 | . . . . . . 1 . . . . . . . . Parts Scanalyzed 4 | . . . . . 1 3 . . . . . . . . Part Schematics Acquired 2 | . . . . . 1 1 . . . . . . . . Parts Damaged . | . . . . . . . . . . . . . . . Bothacking | -11 -10 -10 -10 -9 -8 -7 -7 -7 -6 -6 -6 -5 -5 -5 ------------ Run | Yrd Mat Min Exi Min Mat Fac Low Low Fac Low Dat Pro Fac Ext Used RIF Installer . | . . . . . . . . . . . . . . . Robots Hacked . | . . . . . . . . . . . . . . . Non-combat . | . . . . . . . . . . . . . . . Combat . | . . . . . . . . . . . . . . . Robot Hacks Applied . | . . . . . . . . . . . . . . . Relay Couplers Released . | . . . . . . . . . . . . . . . Fabnet Peak Effective % . | . . . . . . . . . . . . . . . Robots Rewired 6 | . . . . . . . 2 . . . . . . 4 Allies Hacked . | . . . . . . . . . . . . . . . Hacks Repelled . | . . . . . . . . . . . . . . . Allies | -11 -10 -10 -10 -9 -8 -7 -7 -7 -6 -6 -6 -5 -5 -5 -------- Run | Yrd Mat Min Exi Min Mat Fac Low Low Fac Low Dat Pro Fac Ext Total Allies 21 | . . 3 . 4 . . 2 . 1 . . . . 11 Largest Group 6 | . . 3 . 3 3 . 2 1 . . . . . 6 Highest-Rated Group 163 | . . 73 . 40 40 . 46 30 . . . . . 163 Highest-Rated Ally 39 | . . 31 . 31 16 . 30 30 . . . . . 39 Total Orders . | . . . . . . . . . . . . . . . Ally Attacks 95 | . . 13 . . 24 . 1 . . . . . . 57 Total Damage 1479 | . . 183 . . 248 . 39 . . . . . . 1009 Kills 12 | . . 4 . . 1 . 1 . . . . . . 6 Allies Corrupted . | . . . . . . . . . . . . . . . Allies Melted 1 | . . . . . . . 1 . . . . . . . Intel | -11 -10 -10 -10 -9 -8 -7 -7 -7 -6 -6 -6 -5 -5 -5 ------- Run | Yrd Mat Min Exi Min Mat Fac Low Low Fac Low Dat Pro Fac Ext Active Infowar (turns) 9397 | 6 794 884 761 865 197 2561 1010 . 1553 . . 328 188 250 Sensors 1 | . . . . . . . . . . . . . 1 . Terrain 5814 | . . . . . . 2561 1010 . 1553 . . 328 112 250 Structural 186 | . . . . . . . . . . . . . 186 . Seismic 3507 | 6 794 884 761 865 197 . . . . . . . . . Robot Analysis Total 2 | . 1 . . . 1 . . . . . . . . . Derelict Logs Recovered 10 | . . 1 . 2 . . 3 3 . . . 1 . . Drone Launches . | . . . . . . . . . . . . . . . Drone Recoveries . | . . . . . . . . . . . . . . . Exploration | -11 -10 -10 -10 -9 -8 -7 -7 -7 -6 -6 -6 -5 -5 -5 ------------- Run | Yrd Mat Min Exi Min Mat Fac Low Low Fac Low Dat Pro Fac Ext Turns Passed 18793 | 66 1265 965 761 865 2027 2562 1465 1495 3318 136 189 648 1574 1457 Spaces Moved 8818 | 21 562 372 316 343 755 1377 864 911 1722 85 114 338 548 490 Core 23 | . . . . . . . . . . . . . . 23 Treads 8731 | . 519 372 316 343 755 1377 864 911 1722 85 114 338 548 467 Legs 64 | 21 43 . . . . . . . . . . . . . Wheels . | . . . . . . . . . . . . . . . Hover . | . . . . . . . . . . . . . . . Flight . | . . . . . . . . . . . . . . . Fastest Speed 50 | 120 120 240 240 240 240 156 156 160 160 160 160 160 160 50 Average Speed 186 | 120 178 240 240 240 240 156 159 160 165 160 160 160 237 231 Slowest Speed 240 | 120 240 240 240 240 240 156 160 160 240 160 160 160 240 240 Overloaded Moves . | . . . . . . . . . . . . . . . Propulsion Burnouts . | . . . . . . . . . . . . . . . Robots Hopped . | . . . . . . . . . . . . . . . Potential Cave-ins 9 | . . . . . . . . . . . . . 7 2 Cave-ins Triggered 1 | . . . . . . . . . . . . . 1 . Exploration Rate (%) 56 | 3 76 72 70 83 59 34 96 96 46 13 75 65 12 54 Regions Visited 14 Branch Regions 9 Pre-discovered Areas 2 | . . . 1 . . . . . . . 1 . . . Known Exits Taken 5 | . . . . . . 1 1 . 1 . . 1 1 . Unknown Exits Taken 9 | 1 1 1 1 1 1 . . 1 . 1 1 . . . Scrap Searched 13 | . . 1 . 2 . . 5 1 . . . 4 . . Spaces Dug 64 | . 4 . . . 18 8 . . 5 . . . 29 . Terrain Destroyed 300 | . 4 . . . 49 19 3 5 33 . . 1 52 134 Melee 9 | . 4 . . . . . . . 3 . . . 2 . Projectile 149 | . . . . . 49 19 3 5 10 . . 1 39 23 AOE 142 | . . . . . . . . . 20 . . . 11 111 Terrain Rammed . | . . . . . . . . . . . . . . . Walls Destroyed . | . . . . . . . . . . . . . . . Machines Disabled . | . . . . . . . . . . . . . . . Actions | -11 -10 -10 -10 -9 -8 -7 -7 -7 -6 -6 -6 -5 -5 -5 --------- Run | Yrd Mat Min Exi Min Mat Fac Low Low Fac Low Dat Pro Fac Ext Total 10777 | 40 697 416 322 367 980 1798 946 949 2166 85 121 418 736 736 Wait 1042 | 3 43 18 . 10 112 307 34 26 275 . . 21 80 113 Move 8803 | 20 561 371 315 342 754 1376 863 910 1721 84 113 337 546 490 Hop . | . . . . . . . . . . . . . . . Pick Up 99 | 2 10 9 2 1 21 10 1 . 17 . . 4 14 8 Fast Attach 18 | 1 3 . . . 1 . . . 7 . 4 . 1 1 Attach 22 | . . . . . 3 2 . . 3 . . 3 5 6 Detach 1 | . . . . . . . . . . . . . . 1 Swap 113 | 1 6 3 . 2 7 8 4 . 30 1 . 11 17 23 Drop 94 | 2 9 1 5 1 19 13 1 . 19 . 4 7 6 7 Fire 508 | 11 58 14 . 11 63 82 35 12 91 . . 35 63 33 Melee 13 | . 7 . . . . . . . 3 . . . 3 . Ram . | . . . . . . . . . . . . . . . Kick . | . . . . . . . . . . . . . . . Crush 3 | . . . . . . . . . . . . . . 3 Escape Stasis 3 | . . . . . . . . . . . . . 1 2 Rewire 58 | . . . . . . . 8 1 . . . . . 49 Trap . | . . . . . . . . . . . . . . . Miscellaneous . | . . . . . . . . . . . . . . . Route ------- -11/Scrapyard -10/Materials (discovered 4 exits: [*Mat x2] / *Min x2) -10/Mines (discovered 3 exits: [*Mat x2] / *Exi) -10/Exiles (discovered 2 exits: [*Min x2]) -9/Mines -8/Materials (discovered 2 exits: *Fac x2) -7/Factory (discovered 3 exits: *Fac / *Low x2) -7/Lower Caves -7/Lower Caves (discovered 2 exits: *Fac / [*Zio]) -6/Factory (discovered 3 exits: *Fac x2 / *Low) -6/Lower Caves -6/Data Miner -5/Proximity Caves -5/Factory (discovered 3 exits: [Fac] / Upp / *Ext) -5/Extension History --------- Turn | Location | Event 30 | -11/Scrapyard | Discovered new exit (range 3) 67 | -11/Scrapyard | Entered Materials 302 | -10/Materials | Build established: Mutant 495 | -10/Materials | Discovered new exit (range 3) 848 | -10/Materials | Discovered new exit (range 15) 1141 | -10/Materials | Discovered new exit (range 8) 1306 | -10/Materials | Discovered new exit (range 7) 1332 | -10/Materials | Entered Mines 1333 | -10/Mines | Met a Derelict testing a Signal Generator 1335 | -10/Mines | Discovered new exit (range 8) 1532 | -10/Mines | Learned Materials trap positions 1634 | -10/Mines | Met a Derelict who couldn't figure out how to use a Trap Extractor 2077 | -10/Mines | Discovered new exit (range 5) 2282 | -10/Mines | Deemed a non-threat by the Exiles lab entrance 2285 | -10/Mines | Discovered new exit (range 5) 2297 | -10/Mines | Entered Exiles 2329 | -10/Exiles | Discovered new exit (range 15) 2381 | -10/Exiles | Met 8R-AWN 2420 | -10/Exiles | Met EX-HEX 2558 | -10/Exiles | Met EX-DEC 2606 | -10/Exiles | Learned location of Zion (-7) 2652 | -10/Exiles | Met EX-BIN 2685 | -10/Exiles | Aligned with FarCom system 2688 | -10/Exiles | Given EX-Vault access code 2757 | -10/Exiles | Opened EX-Vault 2776 | -10/Exiles | Found XL Autogun Array 2828 | -10/Exiles | Warned to stay clear of 0b10 Research branches 3039 | -10/Exiles | Discovered new exit (range 10) 3058 | -10/Exiles | Left Exiles lab with XL Autogun Array 3058 | -10/Exiles | Entered Mines 3064 | -9/Mines | Received a Mining Laser from a helpful Derelict 3496 | -9/Mines | Learned Materials security intel 3505 | -9/Mines | Received a Rocket Launcher from a helpful Derelict 3609 | -9/Mines | Learned Materials interactive machine intel 3742 | -9/Mines | Discovered new exit (range 14) 3806 | -9/Mines | Assisted by bots powering up and referring to "LRC-V3" 3923 | -9/Mines | Entered Materials 3923 | -8/Materials | Accompanied by 3 allies 3923 | -8/Materials | Evolved 4 slots: Propulsion x1, Utility x1, Weapon x2 3924 | -8/Materials | Loaded intel: 8 trap records 3926 | -8/Materials | Loaded intel: 19 interactive machine locations 4106 | -8/Materials | Lost 3 allies 4272 | -8/Materials | Build established: Skirmisher 4583 | -8/Materials | Repaired Imp. Weapon Shielding 5377 | -8/Materials | Discovered new exit (range 10) 5650 | -8/Materials | Discovered new exit (range 15) 5950 | -8/Materials | Entered Factory 5950 | -7/Factory | Evolved 2 slots: Propulsion x1, Utility x1 6473 | -7/Factory | Discovered new exit (range 13) 6519 | -7/Factory | Build established: Scavenger-Skirmisher 6894 | -7/Factory | Build established: Skirmisher 7699 | -7/Factory | Discovered new exit (range 5) 8278 | -7/Factory | Discovered new exit (range 7) 8510 | -7/Factory | Identified exit to Lower Caves 8512 | -7/Factory | Entered Lower Caves 8719 | -7/Lower Caves | Attracted the attention of an 0b10 checkpoint 8808 | -7/Lower Caves | Build established: Tank 8972 | -7/Lower Caves | Learned Factory security intel 8976 | -7/Lower Caves | Encountered a Warlord checkpoint 9078 | -7/Lower Caves | Learned location of 1 exit from Factory 9278 | -7/Lower Caves | Identified exit to Lower Caves 9509 | -7/Lower Caves | Attracted the attention of an 0b10 outpost 9823 | -7/Lower Caves | Spotted B-75 Beast 9839 | -7/Lower Caves | Allies destroyed B-75 Beast 9977 | -7/Lower Caves | Entered another Lower Caves area 9977 | -7/Lower Caves | Accompanied by 1 ally 9979 | -7/Lower Caves | Learned Factory emergency access door positions 10016 | -7/Lower Caves | Encountered a Warlord checkpoint 10066 | -7/Lower Caves | Discovered new exit (range 9) 10236 | -7/Lower Caves | Murdered Warlord Statue 10265 | -7/Lower Caves | Learned Factory emergency access door positions 10834 | -7/Lower Caves | Discovered new exit (range 6) 10924 | -7/Lower Caves | Learned 4 Factory zone layouts 11472 | -7/Lower Caves | Entered Factory 11472 | -6/Factory | Evolved 2 slots: Power x1, Utility x1 11473 | -6/Factory | Identified exit to Factory 11754 | -6/Factory | Repaired Imp. Medium Armor Plating 11775 | -6/Factory | Build established: Skirmisher 12093 | -6/Factory | Discovered new exit (range 15) 12765 | -6/Factory | Garrison activated, responded to threat 12847 | -6/Factory | Discovered exit to Factory (range 15) 13252 | -6/Factory | Repaired Imp. Medium Treads 13661 | -6/Factory | Build established: Tank 13876 | -6/Factory | Repaired Imp. Medium Armor Plating 14786 | -6/Factory | Identified exit to Lower Caves 14790 | -6/Factory | Entered Lower Caves 14915 | -6/Lower Caves | A Derelict revealed a hidden shortcut to meet someone special 14926 | -6/Lower Caves | Entered Data Miner 14926 | -6/Data Miner | Discovered new exit (range 6) 14959 | -6/Data Miner | Met Data Miner 14997 | -6/Data Miner | Learned location of Section 7 (-2) 14997 | -6/Data Miner | Acquired the access code to Warlord's prototype stash 15026 | -6/Data Miner | Received God Mode back door access code from Data Miner 15115 | -6/Data Miner | Entered Proximity Caves 15119 | -5/Proximity Caves | Spotter reported a threat 15285 | -5/Proximity Caves | Spotter reported a threat 15547 | -5/Proximity Caves | Build established: Skirmisher 15756 | -5/Proximity Caves | Discovered exit to Factory (range 5) 15763 | -5/Proximity Caves | Entered Factory 15763 | -5/Factory | Evolved 2 slots: Power x1, Utility x1 15764 | -5/Factory | Identified exit to Upper Caves 15880 | -5/Factory | Build established: Tank 15915 | -5/Factory | Repaired Lyr. Medium Armor Plating 16027 | -5/Factory | Found Powered Armor 16030 | -5/Factory | Found Powered Armor 16033 | -5/Factory | Found Powered Armor 16037 | -5/Factory | Found Powered Armor 16165 | -5/Factory | Crushed by falling debris 17255 | -5/Factory | Garrison activated, responded to threat 17326 | -5/Factory | Discovered new exit (range 5) 17328 | -5/Factory | Discovered new exit (range 16) 17336 | -5/Factory | Identified exit to Extension 17337 | -5/Factory | Entered Extension 17493 | -5/Extension | Build established: Skirmisher 17536 | -5/Extension | Rescued a captive Derelict 17647 | -5/Extension | Rescued a captive Derelict 17674 | -5/Extension | Rescued a captive Derelict 17676 | -5/Extension | Rescued a captive Derelict 17761 | -5/Extension | Rescued a captive Derelict 17763 | -5/Extension | Rescued a captive Derelict 17802 | -5/Extension | Lost 4 allies 17874 | -5/Extension | Build established: Tank 17988 | -5/Extension | Lost 3 allies 18110 | -5/Extension | Rescued a captive Derelict 18120 | -5/Extension | Lost 3 allies 18237 | -5/Extension | Build established: Scavenger-Tank 18662 | -5/Extension | Disrupted transfer network 18682 | -5/Extension | Spotted B-75 Beast 18695 | -5/Extension | Destroyed B-75 Beast 18749 | -5/Extension | Spotted B-75 Beast 18783 | -5/Extension | Released all parts (4) 18786 | -5/Extension | Core integrity fell below 50% 18792 | -5/Extension | Core integrity fell below 20% 18794 | -5/Extension | Destroyed by G-67 Veteran with Plasma Rifle Last Messages --------------- 18780_ Broken Imp. Medium Treads destroyed. 18780_ Knocked back. 18781_ Slug penetrates Machine. 18782_ Lyr. Medium Armor Plating destroyed. 18782_ Penetrated by Slug. 18782_ Hvy. Plasma Cannon destroyed. 18782_ T-07 Excavator destroyed. 18783_ Released Neutrino Core. 18783_ Released Hcp. Storage Unit. 18783_ Released Broken Rnf. Deuterium Engine. 18783_ Released Powered Armor. 18784_ Acquired 4 matter. 18784_ Knocked back. 18785_ Penetrated by Slug. 18785_ Acquired 1 matter. 18786_ Penetrated by Slug. 18789_ Slug penetrates R-10 Processor. 18789_ Penetrated by Slug. 18791_ Critical hit (Meltdown: +330). 18792_ Penetrated by Slug. Map ----- +----------------------------------------------------+ | # ! ##????????????????????????????????????? | | # ] ^^ "#????????????????????????????????????? | | # T####?????????????????????????????????? | | # ##?????????????????????????????????? | | # # ##????????????????????????????????? | | # # #????????????????????????????????? | | # # ##????????????????????????????????? | | ## ##" " #% #????????????????????????????????? | | ?# T#"Y" # # #????????????????????????????????? | | ?# ##""" ## #????????????????????????????????? | | ?# ### # #????????????????????????????????? | | ?###?# # ????????Y?????????????????????????? | | ?????##### #?###?????????????????????????????????? | | ?????????? #????????# ???????????????????????????? | | ?????????? #????????# ???????????????????????????? | | ???????????#????????# ???????????????????????????? | | ?????????? #######??# #??????????????????????????? | | ??????#### # ## ### ###????????????????????????? | | ??????# ""h"" "" ""#????????????????????????? | | ??????# " " #????????????????????????? | | ???#### #????????????????????????? | | ??## #????????????????????????? | | ### Yg % ################?????????? | | ! * [ R????????? | | *![*%! % ????????? | | !!!%! R R @ g ????????? | | =%%*!!! g ! u ????????? | | *]=!!!% =%|! =%%=% u R R g g ????????? | | ##*=! ! ! = % ################?????????? | | ?## % #????????????????????????? | | ??## #????????????????????????? | | ???## #????????????????????????? | | ???# # # #????????????????????????? | | ???####### # #"""#######????????????????????????? | | ?????????#### #??????????????????????????????????? | | ????????????###??????????????????????????????????? | | | | | | | | | | | | | | | | | | | | | | | | | | | | | +----------------------------------------------------+ Best States ------------- Heat Dissipation 71 Energy Generation 43 Energy Capacity 705 Matter Stores 300 Matter Capacity 300 Sight Range 16 Terrain Scan Range 20 Terrain Scan Density 110 Armor Coverage 850 Resistance: EM 15 Propulsion Shielding 33 Utility Shielding 66 Weapon Shielding 66 Evasion (%) 50 Recoil Reduction 10 Matter Filtering 30 Offensive Hacking 10 Defensive Hacking 12 Item Schematics ----------------- Minigun | -8/Materials | Scanalyzed Arm. Wheel | -7/Factory | Scanalyzed Combat Drone Bay | -6/Data Miner | Free Lgt. Regenerative Plating | -6/Data Miner | Free Enh. Flexi-carbon Leg | -6/Data Miner | Free Exp. Heat Sink | -6/Data Miner | Free Hvy. Gatling Laser | -6/Data Miner | Free Imp. Antigrav System | -6/Data Miner | Free Quantum Capacitor | -6/Data Miner | Free Adv. Datajack | -6/Data Miner | Free Robot Schematics ------------------ B-60 Warrior | -6/Data Miner | Free B-48 Gladiator | -6/Data Miner | Free S-27 Virus | -6/Data Miner | Free A-15 Conveyor | -6/Data Miner | Free O-32 Director | -6/Data Miner | Free W-44 Eye | -6/Data Miner | Free Fabricated ------------ Nothing Repaired ---------- Imp. Weapon Shielding | 69% | -8/Materials Imp. Medium Armor Plating | 65% | -6/Factory Imp. Medium Treads | 74% | -6/Factory Imp. Medium Armor Plating | 53% | -6/Factory Lyr. Medium Armor Plating | 14% | -5/Factory Alien Tech Used ----------------- None Achievements -------------- The Oracle Challenges ------------ None Game ------ Seed GravityGammaRouter Manual? 0 Play Time 02:29:45 Cumulative 64.2 hours Start 2025.07.26 @ 16:05:21 End 2025.07.27 @ 15:23:43 Sessions 3 Manual Loads 0 Difficulty Rogue Special Mode None Game No. 47 Rogue 46 Adventurer 0 Explorer 1 Win Type - Total 2 Types 2/0/0/0/0/0/0/0/0/0 Lore% 38 Gallery% 32 Achievement% 30 Wizard Run 0 Options --------- Layout 2 ASCII 0 Keyboard 0 Movement Numpad Keybinds 0 Fullscreen 1 Font 32/SmallcapsGlow Map View 50x44 Zoom Use 0% Tactical HUD 1 Map Filters NONE Filters NONE Steam 1 RUN: 457e97e8-ea5d-4ac8-a37e-10385c5b55a8